fUST/lending_fUST_20240501
["ID","MTS","AMOUNT","RATE_DAILY","PERIOD"]
[325132547,1714535446267,-500.0,0.00181894,120]
[325132548,1714535446276,-590.15877432,0.00181894,120]
[325132549,1714535446286,-151.0,0.00181894,120]
[325132550,1714535446294,-179.872767,0.00181894,120]
[325132551,1714535446304,-151.0,0.00181894,120]
[325132552,1714535446313,-151.0,0.00181894,120]
[325132553,1714535446322,-208.376881,0.00181894,120]
[325132554,1714535446331,-151.0,0.00181894,120]
[325132555,1714535446341,-155.05927646,0.00181903,30]
[325132556,1714535446349,-264.30266857,0.00181903,30]
[325132557,1714535446359,-379.63675339,0.00181903,30]
[325132558,1714535446368,-155.11759518,0.00181903,30]
[325132559,1714535446376,-10000.0,0.00184134,120]
[325132560,1714535446386,-500.0,0.001863,120]
[325132561,1714535446394,-500.0,0.001863,120]
[325132562,1714535446403,-507.04897982,0.00186301,120]
[325132563,1714535446412,-1124.64,0.00186301,2]
[325132564,1714535446421,-3197.17,0.00186301,120]
[325132565,1714535446430,-500.0,0.00186301,120]
[325132566,1714535446439,-500.0,0.00186301,120]
[325132567,1714535446448,-1314.09,0.00186301,120]
[325132568,1714535446457,-500.0,0.00186301,120]
[325132569,1714535446467,-858.67,0.00186301,120]
[325132570,1714535446475,-500.0,0.00186301,120]
[325132571,1714535446485,-2804.76,0.00186301,120]
[325132572,1714535446494,-1875.12,0.00186301,120]
[325132573,1714535446503,-3221.6,0.00186301,120]
[325132574,1714535446512,-500.0,0.00186301,120]
[325132575,1714535446521,-915.55,0.00186301,120]
[325132576,1714535446530,-1000.0,0.00186301,120]
[325132577,1714535446539,-2600.78,0.00186301,120]
[325132578,1714535446548,-10617.77,0.00186301,120]
[325132579,1714535446558,-500.0,0.00186301,120]
[325132580,1714535446567,-500.0,0.00186301,120]
[325132581,1714535446577,-1672.97,0.00186301,120]
[325132582,1714535446586,-500.0,0.00186301,120]
[325132583,1714535446595,-1187.5,0.00186301,120]
[325132584,1714535446604,-500.0,0.00186301,120]
[325132585,1714535446613,-985.82,0.00186301,120]
[325132586,1714535446622,-2038.18,0.00186301,120]
[325132587,1714535446632,-500.0,0.00186301,120]
[325132588,1714535446641,-1164.54,0.00186301,120]
[325132589,1714535446650,-2237.77,0.00186301,120]
[325132590,1714535446659,-232.3,0.00187831,120]
[325132591,1714535446669,-2500.0,0.001889,120]
[325132592,1714535446678,-2500.0,0.001895,120]
[325132593,1714535446687,-182.95117931,0.00189895,30]
[325132594,1714535446696,-1608.78436868,0.00189897,60]
[325132595,1714535446705,-155.5515027,0.00189898,30]
[325132596,1714535446714,-402.25888817,0.00189898,2]
[325132597,1714535446723,-200.80542565,0.00189898,30]
[325132598,1714535446732,-849.59347435,0.00189898,120]
[325132599,1714535446741,-8799.80005311,0.00189898,120]
[325132600,1714535446750,-164.58639232,0.00189898,30]
[325132601,1714535446759,-154.93974595,0.00189898,30]
[325132602,1714535446768,-1316.28071359,0.00189898,30]
[325132603,1714535446777,-155.07583989,0.00189898,30]
[325132604,1714535446786,-461.20078949,0.00189898,30]
[325132605,1714535446796,-904.61226945,0.00189898,30]
[325132606,1714535446805,-302.920855,0.00189898,120]
[325132607,1714535446814,-302.920855,0.00189898,120]
[325132608,1714535446823,-151.0,0.00189898,120]
[325132609,1714535446833,-195.284393,0.00189898,120]
[325132610,1714535446842,-195.284393,0.00189898,120]
[325132611,1714535446851,-189.176192,0.00189898,120]
[325132612,1714535446861,-189.176192,0.00189898,120]
[325132613,1714535446870,-151.0,0.00189898,120]
[325132614,1714535446879,-151.0,0.00189898,120]
[325132615,1714535446943,-151.0,0.00189898,120]
[325132616,1714535446954,-213.473032,0.00189898,120]
[325132617,1714535446963,-257.856973,0.00189898,120]
[325132618,1714535446971,-151.0,0.00189898,120]
[325132619,1714535446981,-151.0,0.00189898,120]
[325132620,1714535446990,-151.0,0.00189898,120]
[325132621,1714535446999,-151.0,0.00189899,3]
[325132622,1714535447008,-808.4633,0.00189899,120]
[325132623,1714535447017,-808.4633,0.00189899,120]
[325132624,1714535447027,-152.910251,0.00189899,120]
[325132625,1714535447036,-254530.0892,0.001899,120]
[325132626,1714535447045,-151.0,0.001899,3]
[325132627,1714535447054,-808.4633,0.001899,120]
[325132628,1714535447063,-808.4633,0.001899,120]
[325132629,1714535447072,-302.920855,0.001899,120]
[325132630,1714535447081,-302.920855,0.001899,120]
[325132631,1714535447091,-151.0,0.001899,120]
[325132632,1714535447104,-195.284393,0.001899,120]
[325132633,1714535447113,-195.284393,0.001899,120]
[325132634,1714535447123,-189.176192,0.001899,120]
[325132635,1714535447132,-189.176192,0.001899,120]
[325132636,1714535447143,-151.0,0.001899,120]
[325132637,1714535447152,-151.0,0.001899,120]
[325132638,1714535447162,-151.0,0.001899,120]
[325132639,1714535447171,-151.0,0.001899,120]
[325132640,1714535447182,-151.0,0.001899,120]
[325132641,1714535447191,-151.0,0.001899,120]
[325132642,1714535447200,-500.0,0.00190794,120]
[325132643,1714535447210,-500.0,0.00190794,120]
[325132644,1714535447219,-500.0,0.00190794,120]
[325132645,1714535447228,-500.0,0.00192853,120]
[325132646,1714535447237,-533.69,0.00192853,120]
[325132647,1714535447247,-2109.68,0.00192853,120]
[325132648,1714535447256,-344.06,0.00192853,120]
[325132649,1714535447265,-525.990963,0.00192853,120]
[325132650,1714535447275,-500.0,0.00192853,120]
[325132651,1714535447284,-838.79,0.00192853,120]
[325132652,1714535447294,-500.0,0.00192853,120]
[325132653,1714535447303,-500.0,0.00192853,2]
[325132654,1714535447313,-1201.82,0.00192853,120]
[325132655,1714535447322,-507.28473217,0.00192853,120]
[325132656,1714535447331,-1250.0,0.00192853,120]
[325132657,1714535447341,-1250.0,0.00192853,120]
[325132658,1714535447350,-600.0,0.00192853,120]
[325132659,1714535447359,-500.0,0.00192853,120]
[325132660,1714535447368,-156.79615499,0.00193,120]
[325132661,1714535447377,-1000.0,0.0019564,120]
[325132662,1714535447386,-530.19570087,0.00197258,120]
[325132663,1714535447395,-500.0,0.00197258,120]
[325132664,1714535447405,-1124.64,0.0019726,2]
[325132665,1714535447414,-3197.17,0.0019726,120]
[325132666,1714535447423,-500.0,0.0019726,120]
[325132667,1714535447432,-329.94508802,0.0019726,120]
[325132668,1714535447443,-1314.09,0.0019726,120]
[325132669,1714535447452,-500.00860466,0.0019726,120]
[325132670,1714535447461,-858.67,0.0019726,120]
[325132671,1714535447471,-500.0,0.0019726,120]
[325132672,1714535447480,-2804.76,0.0019726,120]
[325132673,1714535447489,-1875.12,0.0019726,120]
[325132674,1714535447499,-3221.6,0.0019726,120]
[325132675,1714535447508,-500.0,0.0019726,120]
[325132676,1714535447517,-915.55,0.0019726,120]
[325132677,1714535447526,-1000.0,0.0019726,120]
[325132678,1714535447535,-2600.78,0.0019726,120]
[325132679,1714535447545,-10617.77,0.0019726,120]
[325132680,1714535447556,-500.0,0.0019726,120]
[325132681,1714535447564,-500.0,0.0019726,120]
[325132682,1714535447573,-1672.97,0.0019726,120]
[325132683,1714535447583,-500.0,0.0019726,120]
[325132684,1714535447592,-1187.5,0.0019726,120]
[325132685,1714535447601,-415.0786147,0.0019726,120]
[325132686,1714535447610,-985.82,0.0019726,120]
[325132687,1714535447619,-2038.18,0.0019726,120]
[325132688,1714535447628,-500.0,0.0019726,120]
[325132689,1714535447637,-1164.54,0.0019726,120]
[325132690,1714535447646,-2237.77,0.0019726,120]
[325132691,1714535447655,-812.6483802,0.002,120]
[325132692,1714535447664,-154.73694719,0.002,30]
[325132693,1714535447673,-500.0,0.00201753,120]
[325132694,1714535447683,-500.0,0.00201753,120]
[325132695,1714535447691,-500.0,0.00201753,120]
[325132696,1714535447701,-10000.0,0.00203299,120]
[325132697,1714535447710,-500.0,0.00203812,120]
[325132698,1714535447719,-808.4633,0.00203812,120]
[325132699,1714535447728,-808.4633,0.00203812,120]
[325132700,1714535447737,-2109.68,0.00203812,120]
[325132701,1714535447746,-500.0,0.00203812,120]
[325132702,1714535447754,-838.79,0.00203812,120]
[325132703,1714535447763,-500.0,0.00203812,120]
[325132704,1714535447772,-302.920855,0.00203812,120]
[325132705,1714535447780,-500.0,0.00203812,2]
[325132706,1714535447789,-302.920855,0.00203812,120]
[325132707,1714535447798,-152.811494,0.00203812,120]
[325132708,1714535447808,-1201.82,0.00203812,120]
[325132709,1714535447818,-1250.0,0.00203812,120]
[325132710,1714535447827,-1250.0,0.00203812,120]
[325132711,1714535447835,-151.0,0.00203812,120]
[325132712,1714535447844,-500.0,0.00203812,120]
[325132713,1714535447853,-151.0,0.00203812,120]
[325132714,1714535447862,-151.0,0.00203812,120]
[325132715,1714535447871,-151.0,0.00203812,120]
[325132716,1714535447880,-151.0,0.00203822,3]
[325132717,1714535447889,-195.284393,0.00203822,120]
[325132718,1714535447898,-195.284393,0.00203822,120]
[325132719,1714535447908,-189.176192,0.00203822,120]
[325132720,1714535447917,-189.176192,0.00203822,120]
[325132721,1714535447926,-270.663699,0.00203822,120]
[325132722,1714535447935,-500.0,0.00208217,120]
[325132723,1714535447945,-1124.64,0.00208219,2]
[325132724,1714535447954,-3197.17,0.00208219,120]
[325132725,1714535447963,-500.0,0.00208219,120]
[325132726,1714535447973,-1314.09,0.00208219,120]
[325132727,1714535447983,-858.67,0.00208219,120]
[325132728,1714535447992,-500.0,0.00208219,120]
[325132729,1714535448001,-2804.76,0.00208219,120]
[325132730,1714535448011,-1875.12,0.00208219,120]
[325132731,1714535448020,-3221.6,0.00208219,120]
[325132732,1714535448029,-500.0,0.00208219,120]
[325132733,1714535448038,-915.55,0.00208219,120]
[325132734,1714535448048,-1000.0,0.00208219,120]
[325132735,1714535448058,-2600.78,0.00208219,120]
[325132736,1714535448067,-10617.77,0.00208219,120]
[325132737,1714535448076,-505.00090758,0.00208219,120]
[325132738,1714535448085,-500.0,0.00208219,120]
[325132739,1714535448094,-1672.97,0.00208219,120]
[325132740,1714535448108,-500.0,0.00208219,120]
[325132741,1714535448118,-1187.5,0.00208219,120]
[325132742,1714535448178,-985.82,0.00208219,120]
[325132743,1714535448187,-2038.18,0.00208219,120]
[325132744,1714535448196,-500.0,0.00208219,120]
[325132745,1714535448205,-1164.54,0.00208219,120]
[325132746,1714535448215,-2237.77,0.00208219,120]
[325132747,1714535448224,-1000.0,0.0020954,120]
[325132748,1714535448233,-500.0,0.00212712,120]
[325132749,1714535448242,-500.0,0.00212712,120]
[325132750,1714535448251,-500.0,0.00212712,120]
[325132751,1714535448261,-500.0,0.0021477,120]
[325132752,1714535448271,-2109.68,0.0021477,120]
[325132753,1714535448281,-500.0,0.0021477,120]
[325132754,1714535448290,-838.79,0.0021477,120]
[325132755,1714535448300,-500.0,0.0021477,120]
[325132756,1714535448310,-500.0,0.0021477,2]
[325132757,1714535448320,-1201.82,0.0021477,120]
[325132758,1714535448329,-1250.0,0.0021477,120]
[325132759,1714535448339,-1250.0,0.0021477,120]
[325132760,1714535448348,-500.0,0.0021477,120]
[325132761,1714535448357,-500.0,0.00219176,120]
[325132762,1714535448366,-1000.0,0.00219178,120]
[325132763,1714535448376,-1124.64,0.00219178,2]
[325132764,1714535448385,-3197.17,0.00219178,120]
[325132765,1714535448394,-500.0,0.00219178,120]
[325132766,1714535448403,-1314.09,0.00219178,120]
[325132767,1714535448413,-858.67,0.00219178,120]
[325132768,1714535448422,-500.0,0.00219178,120]
[325132769,1714535448432,-2804.76,0.00219178,120]
[325132770,1714535448442,-1875.12,0.00219178,120]
[325132771,1714535448451,-3221.6,0.00219178,120]
[325132772,1714535448460,-500.0,0.00219178,120]
[325132773,1714535448469,-915.55,0.00219178,120]
[325132774,1714535448479,-1000.0,0.00219178,120]
[325132775,1714535448488,-2600.78,0.00219178,120]
[325132776,1714535448498,-151.0,0.00219178,120]
[325132777,1714535448507,-151.0,0.00219178,120]
[325132778,1714535448517,-10617.77,0.00219178,120]
[325132779,1714535448526,-500.0,0.00219178,120]
[325132780,1714535448535,-1672.97,0.00219178,120]
[325132781,1714535448545,-500.0,0.00219178,120]
[325132782,1714535448555,-1187.5,0.00219178,120]
[325132783,1714535448564,-985.82,0.00219178,120]
[325132784,1714535448573,-2038.18,0.00219178,120]
[325132785,1714535448582,-500.0,0.00219178,120]
[325132786,1714535448591,-1164.54,0.00219178,120]
[325132787,1714535448600,-2237.77,0.00219178,120]
[325132788,1714535448610,-500.0,0.0022367,120]
[325132789,1714535448619,-500.0,0.0022367,120]
[325132790,1714535448628,-500.0,0.0022367,120]
[325132791,1714535448637,-302.920855,0.0022367,120]
[325132792,1714535448646,-302.920855,0.0022367,120]
[325132793,1714535448655,-10000.0,0.00224459,120]
[325132794,1714535448664,-1000.0,0.00224657,120]
[325132795,1714535448673,-500.0,0.00225729,120]
[325132796,1714535448682,-808.4633,0.00225729,120]
[325132797,1714535448691,-808.4633,0.00225729,120]
[325132798,1714535448700,-2109.68,0.00225729,120]
[325132799,1714535448709,-500.0,0.00225729,120]
[325132800,1714535448719,-838.79,0.00225729,120]
[325132801,1714535448728,-500.0,0.00225729,120]
[325132802,1714535448737,-500.0,0.00225729,2]
[325132803,1714535448746,-1201.82,0.00225729,120]
[325132804,1714535448756,-195.284393,0.00225729,120]
[325132805,1714535448765,-195.284393,0.00225729,120]
[325132806,1714535448774,-189.176192,0.00225729,120]
[325132807,1714535448783,-189.176192,0.00225729,120]
[325132808,1714535448792,-1250.0,0.00225729,120]
[325132809,1714535448801,-1250.0,0.00225729,120]
[325132810,1714535448811,-500.0,0.00225729,120]
[325132811,1714535448820,-153.193991,0.00225739,3]
[325132812,1714535448829,-329.31489999,0.00228114,14]
[325132813,1714535448839,-1000.0,0.0022882,120]
[325132814,1714535448848,-701.28207,0.00229022,2]
[325132815,1714535448858,-500.0,0.00230135,120]
[325132816,1714535448867,-1000.0,0.00230136,120]
[325132817,1714535448876,-1124.64,0.00230136,2]
[325132818,1714535448885,-3197.17,0.00230136,120]
[325132819,1714535448894,-500.0,0.00230136,120]
[325132820,1714535448903,-1314.09,0.00230136,120]
[325132821,1714535448912,-858.67,0.00230136,120]
[325132822,1714535448921,-500.0,0.00230136,120]
[325132823,1714535448931,-2804.76,0.00230136,120]
[325132824,1714535448940,-1875.12,0.00230136,120]
[325132825,1714535448950,-3221.6,0.00230136,120]
[325132826,1714535448959,-500.0,0.00230136,120]
[325132827,1714535448969,-915.55,0.00230136,120]
[325132828,1714535448978,-1000.0,0.00230136,120]
[325132829,1714535448987,-2600.78,0.00230136,120]
[325132830,1714535448996,-10617.77,0.00230136,120]
[325132831,1714535449005,-500.0,0.00230136,120]
[325132832,1714535449015,-1672.97,0.00230136,120]
[325132833,1714535449024,-500.0,0.00230136,120]
[325132834,1714535449033,-1187.5,0.00230136,120]
[325132835,1714535449043,-985.82,0.00230136,120]
[325132836,1714535449052,-2038.18,0.00230136,120]
[325132837,1714535449061,-500.0,0.00230136,120]
[325132838,1714535449070,-1164.54,0.00230136,120]
[325132839,1714535449079,-2237.77,0.00230136,120]
[325132840,1714535449090,-154.64623115,0.00234582,120]
[325132841,1714535449102,-500.0,0.00234629,120]
[325132842,1714535449111,-500.0,0.00234629,120]
[325132843,1714535449121,-500.0,0.00234629,120]
[325132844,1714535449131,-1000.0,0.00235616,120]
[325132845,1714535449140,-500.0,0.00236688,120]
[325132846,1714535449148,-2109.68,0.00236688,120]
[325132847,1714535449158,-500.0,0.00236688,120]
[325132848,1714535449167,-838.79,0.00236688,120]
[325132849,1714535449177,-500.0,0.00236688,120]
[325132850,1714535449187,-500.0,0.00236688,2]
[325132851,1714535449196,-1201.82,0.00236688,120]
[325132852,1714535449205,-1250.0,0.00236688,120]
[325132853,1714535449214,-1250.0,0.00236688,120]
[325132854,1714535449223,-500.0,0.00236688,120]
[325132855,1714535449233,-302.920855,0.00236699,120]
[325132856,1714535449243,-302.920855,0.00236699,120]
[325132857,1714535449252,-2500.0,0.002369,120]
[325132858,1714535449261,-153.52140436,0.00239093,120]
[325132859,1714535449270,-232.3,0.00239352,120]
[325132860,1714535449330,-500.0,0.00241094,120]
[325132861,1714535449340,-1124.64,0.00241095,2]
[325132862,1714535449349,-3197.17,0.00241095,120]
[325132863,1714535449359,-500.0,0.00241095,120]
[325132864,1714535449368,-1314.09,0.00241095,120]
[325132865,1714535449377,-858.67,0.00241095,120]
[325132866,1714535449386,-500.0,0.00241095,120]
[325132867,1714535449396,-2804.76,0.00241095,120]
[325132868,1714535449405,-1875.12,0.00241095,120]
[325132869,1714535449415,-3221.6,0.00241095,120]
[325132870,1714535449425,-500.0,0.00241095,120]
[325132871,1714535449434,-915.55,0.00241095,120]
[325132872,1714535449444,-1000.0,0.00241095,120]
[325132873,1714535449453,-2600.78,0.00241095,120]
[325132874,1714535449463,-10617.77,0.00241095,120]
[325132875,1714535449472,-540.71440554,0.00241095,120]
[325132876,1714535449482,-1672.97,0.00241095,120]
[325132877,1714535449491,-500.0,0.00241095,120]
[325132878,1714535449501,-1187.5,0.00241095,120]
[325132879,1714535449510,-985.82,0.00241095,120]
[325132880,1714535449519,-2038.18,0.00241095,120]
[325132881,1714535449529,-500.0,0.00241095,120]
[325132882,1714535449538,-1164.54,0.00241095,120]
[325132883,1714535449547,-2237.77,0.00241095,120]
[325132884,1714535449558,-189.176192,0.002449,120]
[325132885,1714535449567,-189.176187,0.002449,120]
[325132886,1714535449576,-2500.0,0.002449,120]
[325132887,1714535449586,-500.0,0.00245588,120]
[325132888,1714535449596,-500.0,0.00245588,120]
[325132889,1714535449605,-500.0,0.00245588,120]
[325132890,1714535449614,-808.4633,0.00245588,120]
[325132891,1714535449623,-808.4633,0.00245588,120]
[325132892,1714535449633,-195.284393,0.00245588,120]
[325132893,1714535449642,-195.284393,0.00245588,120]
[325132894,1714535449651,-167.56295914,0.00245863,120]
[325132895,1714535449660,-502.318043,0.00247647,120]
[325132896,1714535449669,-2109.68,0.00247647,120]
[325132897,1714535449678,-500.0,0.00247647,120]
[325132898,1714535449687,-838.79,0.00247647,120]
[325132899,1714535449696,-489.89,0.00247647,120]
[325132900,1714535449705,-500.0,0.00247647,2]
[325132901,1714535449714,-1201.82,0.00247647,120]
[325132902,1714535449724,-1250.0,0.00247647,120]
[325132903,1714535449733,-1250.0,0.00247647,120]
[325132904,1714535449742,-500.0,0.00247647,120]
[325132905,1714535449751,-10000.0,0.00247821,120]
[325132906,1714535449761,-150.5,0.0024997,35]
[325132907,1714535449770,-150.5,0.0024998,35]
[325132908,1714535449779,-150.5,0.0024999,35]
[325132909,1714535449788,-500.0,0.00252053,120]
[325132910,1714535449798,-1124.64,0.00252054,2]
[325132911,1714535449809,-3197.17,0.00252054,120]
[325132912,1714535449818,-500.0,0.00252054,120]
[325132913,1714535449827,-1314.09,0.00252054,120]
[325132914,1714535449836,-858.67,0.00252054,120]
[325132915,1714535449845,-500.0,0.00252054,120]
[325132916,1714535449854,-2804.76,0.00252054,120]
[325132917,1714535449864,-1875.12,0.00252054,120]
[325132918,1714535449873,-3221.6,0.00252054,120]
[325132919,1714535449882,-368.13839992,0.00252054,120]
[325132920,1714535449891,-915.55,0.00252054,120]
[325132921,1714535449900,-1000.0,0.00252054,120]
[325132922,1714535449910,-2600.78,0.00252054,120]
[325132923,1714535449919,-10617.77,0.00252054,120]
[325132924,1714535449928,-1672.97,0.00252054,120]
[325132925,1714535449937,-500.0,0.00252054,120]
[325132926,1714535449947,-1187.5,0.00252054,120]
[325132927,1714535449956,-985.82,0.00252054,120]
[325132928,1714535449965,-2038.18,0.00252054,120]
[325132929,1714535449974,-500.0,0.00252054,120]
[325132930,1714535449983,-1164.54,0.00252054,120]
[325132931,1714535449992,-2237.77,0.00252054,120]
[325132932,1714535450001,-1000.0,0.0025277,120]
[325132933,1714535450011,-701.28207,0.00254469,2]
[325132934,1714535450020,-2000.0,0.00255,120]
[325132935,1714535450030,-500.0,0.00256547,120]
[325132936,1714535450039,-500.0,0.00256547,120]
[325132937,1714535450048,-500.0,0.00256547,120]
[325132938,1714535450057,-2109.68,0.00258606,120]
[325132939,1714535450067,-500.0,0.00258606,120]
[325132940,1714535450077,-838.79,0.00258606,120]
[325132941,1714535450087,-302.920855,0.00258606,120]
[325132942,1714535450097,-500.0,0.00258606,2]
[325132943,1714535450110,-302.920855,0.00258606,120]
[325132944,1714535450119,-1201.82,0.00258606,120]
[325132945,1714535450130,-1250.0,0.00258606,120]
[325132946,1714535450140,-1250.0,0.00258606,120]
[325132947,1714535450150,-486.284506,0.00258606,120]
[325132948,1714535450159,-153.52140436,0.00262111,120]
[325132949,1714535450168,-500.0,0.00263012,120]
[325132950,1714535450178,-1124.64,0.00263013,2]
[325132951,1714535450187,-3197.17,0.00263013,120]
[325132952,1714535450197,-500.0,0.00263013,120]
[325132953,1714535450206,-1314.09,0.00263013,120]
[325132954,1714535450215,-858.67,0.00263013,120]
[325132955,1714535450225,-500.0,0.00263013,120]
[325132956,1714535450234,-2804.76,0.00263013,120]
[325132957,1714535450245,-1875.12,0.00263013,120]
[325132958,1714535450253,-3221.6,0.00263013,120]
[325132959,1714535450263,-915.55,0.00263013,120]
[325132960,1714535450272,-1000.0,0.00263013,120]
[325132961,1714535450282,-2600.78,0.00263013,120]
[325132962,1714535450291,-10617.77,0.00263013,120]
[325132963,1714535450300,-1672.97,0.00263013,120]
[325132964,1714535450309,-500.0,0.00263013,120]
[325132965,1714535450318,-1187.5,0.00263013,120]
[325132966,1714535450328,-985.82,0.00263013,120]
[325132967,1714535450337,-2038.18,0.00263013,120]
[325132968,1714535450398,-500.0,0.00263013,120]
[325132969,1714535450407,-1164.54,0.00263013,120]
[325132970,1714535450416,-2237.77,0.00263013,120]
[325132971,1714535450427,-500.0,0.00267506,120]
[325132972,1714535450436,-364.62103571,0.00267506,120]
[325132973,1714535450446,-500.0,0.00267506,120]
[325132974,1714535450455,-195.284393,0.00267506,120]
[325132975,1714535450464,-195.284385,0.00267506,120]
[325132976,1714535450474,-769.4,0.00268641,120]
[325132977,1714535450483,-808.4633,0.00269565,120]
[325132978,1714535450492,-808.4633,0.00269565,120]
[325132979,1714535450502,-2109.68,0.00269565,120]
[325132980,1714535450511,-500.0,0.00269565,120]
[325132981,1714535450520,-838.79,0.00269565,120]
[325132982,1714535450530,-500.0,0.00269565,2]
[325132983,1714535450539,-1201.82,0.00269565,120]
[325132984,1714535450549,-1250.0,0.00269565,120]
[325132985,1714535450558,-1250.0,0.00269565,120]
[325132986,1714535450567,-10000.0,0.00273614,120]
[325132987,1714535450577,-500.0,0.00273971,120]
[325132988,1714535450586,-1124.64,0.00273972,2]
[325132989,1714535450596,-3197.17,0.00273972,120]
[325132990,1714535450605,-556.0612554,0.00273972,120]
[325132991,1714535450615,-1314.09,0.00273972,120]
[325132992,1714535450624,-858.67,0.00273972,120]
[325132993,1714535450634,-500.0,0.00273972,120]
[325132994,1714535450644,-2804.76,0.00273972,120]
[325132995,1714535450653,-500.0,0.00273972,120]
[325132996,1714535450663,-500.0,0.00273972,120]
[325132997,1714535450672,-500.0,0.00273972,120]
[325132998,1714535450681,-500.0,0.00273972,120]
[325132999,1714535450691,-500.0,0.00273972,120]
[325133000,1714535450700,-500.0,0.00273972,120]
[325133001,1714535450709,-500.0,0.00273972,120]
[325133002,1714535450719,-500.0,0.00273972,120]
[325133003,1714535450728,-500.0,0.00273972,120]
[325133004,1714535450737,-500.0,0.00273972,120]
[325133005,1714535450746,-500.0,0.00273972,120]
[325133006,1714535450755,-500.0,0.00273972,120]
[325133007,1714535450764,-500.0,0.00273972,120]
[325133008,1714535450773,-500.0,0.00273972,120]
[325133009,1714535450783,-500.0,0.00273972,120]
[325133010,1714535450793,-500.0,0.00273972,120]
[325133011,1714535450803,-1875.12,0.00273972,120]
[325133012,1714535450815,-1123.97,0.00273972,120]
[325133013,1714535450826,-1123.97,0.00273972,120]
[325133014,1714535450836,-1123.97,0.00273972,120]
[325133015,1714535450846,-1123.97,0.00273972,120]
[325133016,1714535450856,-1123.97,0.00273972,120]
[325133017,1714535450866,-1123.97,0.00273972,120]
[325133018,1714535450875,-1123.97,0.00273972,120]
[325133019,1714535450885,-1123.97,0.00273972,120]
[325133020,1714535450895,-1123.97,0.00273972,120]
[325133021,1714535450904,-1123.97,0.00273972,120]
[325133022,1714535450914,-1123.97,0.00273972,120]
[325133023,1714535450924,-3221.6,0.00273972,120]
[325133024,1714535450933,-915.55,0.00273972,120]
[325133025,1714535450943,-1002.30953689,0.00273972,120]
[325133026,1714535450953,-2600.78,0.00273972,120]
[325133027,1714535450962,-10617.77,0.00273972,120]
[325133028,1714535450972,-500.0,0.00273972,120]
[325133029,1714535450982,-1672.97,0.00273972,120]
[325133030,1714535450991,-500.0,0.00273972,120]
[325133031,1714535451001,-500.0,0.00273972,120]
[325133032,1714535451010,-500.0,0.00273972,120]
[325133033,1714535451020,-500.0,0.00273972,120]
[325133034,1714535451029,-500.0,0.00273972,120]
[325133035,1714535451038,-500.0,0.00273972,120]
[325133036,1714535451048,-500.0,0.00273972,120]
[325133037,1714535451057,-500.0,0.00273972,120]
[325133038,1714535451067,-500.0,0.00273972,120]
[325133039,1714535451076,-500.0,0.00273972,120]
[325133040,1714535451086,-500.0,0.00273972,120]
[325133041,1714535451099,-500.0,0.00273972,120]
[325133042,1714535451108,-500.0,0.00273972,120]
[325133043,1714535451118,-516.52553038,0.00273972,120]
[325133044,1714535451128,-500.0,0.00273972,120]
[325133045,1714535451138,-1187.5,0.00273972,120]
[325133046,1714535451148,-985.82,0.00273972,120]